bitfinex/quotes_SOLUSD_20260305
["timestamp","ask_amount","ask_price","bid_price","bid_amount"]
[1772692980994,55.24790106,90.502,90.431,1.35963135]
[1772692980995,11.05166858,90.485,90.431,1.35963135]
[1772692981904,27.62596551,90.495,90.433,1.35963135]
[1772692985012,4.22378929,90.49,90.435,1.35963135]
[1772692985211,27.62596551,90.495,90.435,1.35963135]
[1772692985387,44.15801847,90.584,90.435,1.35963135]
[1772692985388,0.28432314,90.508,90.438,1.35963135]
[1772692985593,11.04862499,90.509,90.438,1.64395449]
[1772692986806,38.67018748,90.509,90.438,1.64395449]
[1772692987112,4.22378929,90.51,90.445,1.35963135]
[1772692987410,4.22378929,90.51,90.449,1.50179292]
[1772692987615,4.22378929,90.51,90.451,1.35963135]
[1772692988812,3.69383402,90.533,90.451,1.35963135]
[1772692989016,0.28432314,90.517,90.453,1.35963135]
[1772692989397,4.22378929,90.51,90.453,1.35963135]
[1772692991702,0.28432314,90.507,90.455,1.35963135]
[1772692992803,1.33530786,90.479,90.421,27.64821536]
[1772692992994,1.33530786,90.469,90.421,27.64821536]
[1772692994200,1.33530786,90.467,90.41,3.69383402]
[1772692994921,1.33530786,90.467,90.411,1.30060778]
[1772692996704,1.33530786,90.467,90.416,1.30060778]
[1772692996705,1.33530786,90.465,90.416,1.30060778]
[1772692996906,1.619631,90.465,90.416,1.30060778]
[1772692997402,1.33530786,90.459,90.416,1.30060778]
[1772692997801,4.22378929,90.46,90.415,3.69383402]
[1772692997802,1.33530786,90.457,90.417,12.36047484]
[1772692997998,1.33530786,90.457,90.418,1.30060778]
[1772692998796,1.23752487,90.455,90.42,1.25326222]
[1772693004315,1.23752487,90.453,90.422,1.25326222]
[1772693007022,11.05558749,90.452,90.424,1.25457531]
[1772693007223,1.24189616,90.451,90.424,1.25457531]
[1772693010530,1.24189616,90.457,90.426,1.25457531]
[1772693013628,38.68942341,90.464,90.427,11.05864398]
[1772693013629,1.24189616,90.455,90.427,11.05864398]
[1772693014511,1.24189616,90.455,90.428,1.25457531]
[1772693016612,1.24189616,90.455,90.429,11.0583994]
[1772693016806,1.24189616,90.455,90.43,1.25457531]
[1772693018811,1.24189616,90.455,90.432,1.25457531]
[1772693022535,1.24189616,90.472,90.434,1.25457531]
[1772693023632,1.24189616,90.477,90.434,1.25457531]
[1772693024214,11.05265484,90.476,90.434,1.25457531]
[1772693024418,27.62932725,90.484,90.434,1.25457531]
[1772693024419,1.5262193,90.475,90.435,11.05766572]
[1772693024613,1.5262193,90.475,90.435,12.31224103]
[1772693024817,1.5262193,90.475,90.436,1.25457531]
[1772693025636,1.24189616,90.473,90.438,1.25457531]
[1772693026629,4.22378929,90.49,90.438,1.25457531]
[1772693026630,1.24189616,90.499,90.438,1.25457531]
[1772693026938,1.24189616,90.499,90.439,1.25457531]
[1772693027539,1.24189616,90.499,90.441,1.25457531]
[1772693027851,1.24189616,90.497,90.446,1.25457531]
[1772693028343,11.04996795,90.498,90.446,1.25457531]
[1772693029035,1.29657513,90.497,90.446,1.25457531]
[1772693030554,1.29519492,90.495,90.448,1.29246237]
[1772693031521,1.29383057,90.493,90.45,1.29246237]
[1772693031826,1.29383057,90.493,90.45,1.57678551]
[1772693032825,1.29383057,90.493,90.451,38.69498402]
[1772693033028,1.29383057,90.493,90.452,1.29246237]
[1772693034823,1.28852806,90.503,90.452,1.29246237]
[1772693037646,1.28596729,90.501,90.454,1.29246237]
[1772693038757,1.28596729,90.501,90.456,1.29246237]
[1772693039054,1.283465,90.5,90.456,1.29246237]
[1772693041157,1.283465,90.5,90.458,1.29246237]
[1772693042550,11.04984585,90.499,90.458,1.29246237]
[1772693042752,1.27981833,90.498,90.458,1.29246237]
[1772693043756,1.27981833,90.498,90.46,1.29246237]
[1772693044129,1.27745649,90.507,90.46,1.29246237]
[1772693046257,12.32632563,90.507,90.462,1.29246237]
[1772693047632,1.27401448,90.506,90.464,1.29246237]
[1772693049156,1.2717852,90.518,90.464,1.29246237]
[1772693050334,1.55501287,90.516,90.466,1.29246237]
[1772693056847,1.26336575,90.514,90.468,1.29246237]
[1772693058542,1.26236698,90.512,90.47,1.29246237]
[1772693058737,11.04769787,90.517,90.47,1.29246237]
[1772693058945,11.0472206,90.521,90.47,1.57678551]
[1772693059243,1.25876007,90.524,90.47,1.57678551]
[1772693059968,11.04691625,90.523,90.47,1.57678551]
[1772693060158,1.25876007,90.522,90.47,1.57678551]
[1772693061883,1.2575426,90.52,90.472,1.27180837]
[1772693062088,1.2575426,90.519,90.472,1.27180837]
[1772693062961,1.54186574,90.519,90.472,1.27180837]
[1772693064572,1.54001268,90.517,90.473,11.05302134]
[1772693064880,1.54001268,90.517,90.474,1.27180837]
[1772693067660,1.53643256,90.515,90.476,1.1799249]
[1772693069763,1.25038045,90.513,90.478,1.1799249]
[1772693071683,1.24869097,90.511,90.48,1.1799249]
[1772693073584,4.2225331,90.52,90.475,27.63194252]
[1772693073585,1.24704008,90.509,90.482,1.1799249]
[1772693073767,1.24622883,90.526,90.482,1.1799249]
[1772693073969,1.24622883,90.524,90.482,1.1799249]
[1772693076479,1.24463417,90.522,90.484,1.1799249]
[1772693079670,1.24231022,90.52,90.486,1.1799249]
[1772693080979,1.24080506,90.525,90.486,1.1799249]
[1772693081178,1.5251282,90.525,90.486,1.1799249]
[1772693082607,1.5251282,90.525,90.456,3.69383402]
[1772693082608,1.24006543,90.509,90.47,1.1799249]
[1772693083983,1.52438857,90.509,90.47,1.1799249]
[1772693086600,1.52151401,90.507,90.471,11.05326568]
[1772693087811,1.52012578,90.505,90.472,1.1799249]
[1772693088885,1.18659285,90.503,90.474,1.21572654]
[1772693090212,1.18659285,90.503,90.468,1.21572654]
[1772693090388,1.18659285,90.489,90.45,27.63929559]
[1772693090699,1.47091599,90.479,90.444,12.27221054]
[1772693090905,1.47091599,90.477,90.445,1.21572654]
[1772693095792,1.47091599,90.475,90.445,1.21572654]
[1772693096506,1.47091599,90.475,90.439,1.21572654]
[1772693097787,4.21991903,90.48,90.441,1.21572654]
[1772693097788,1.18659285,90.473,90.441,1.21572654]
[1772693100211,1.18659285,90.489,90.443,1.21572654]
[1772693100595,1.32875442,90.489,90.443,1.21572654]
[1772693101092,1.47091599,90.489,90.443,1.21572654]
[1772693101502,1.47091599,90.489,90.442,11.05680988]
[1772693101503,1.47091599,90.479,90.442,11.05680988]
[1772693101702,1.47091599,90.479,90.443,1.21572654]
[1772693102895,12.23837294,90.484,90.445,1.21572654]
[1772693103423,1.18659285,90.483,90.445,1.21572654]
[1772693105192,1.18659285,90.483,90.447,1.21572654]
[1772693106598,11.05192192,90.482,90.449,1.21572654]
[1772693107925,1.18659285,90.481,90.449,1.21572654]
[1772693108705,1.18659285,90.479,90.451,1.21572654]
[1772693113599,11.05241053,90.478,90.451,1.21572654]
[1772693113922,1.18659285,90.477,90.452,11.05558749]
[1772693114427,1.18659285,90.477,90.452,12.27131403]
[1772693115027,1.18659285,90.475,90.453,1.21572654]
[1772693116820,1.18659285,90.475,90.44,1.21572654]
[1772693117234,4.21991903,90.47,90.434,1.21572654]
[1772693117408,1.18659285,90.469,90.434,1.21572654]
[1772693118231,1.18659285,90.494,90.434,1.21572654]
[1772693118420,1.47091599,90.494,90.434,1.21572654]
[1772693118619,1.47091599,90.493,90.434,1.21572654]
[1772693120934,1.17722499,90.491,90.436,1.26024264]
[1772693124226,1.17722499,90.491,90.438,1.26024264]
[1772693124730,11.05070061,90.492,90.438,1.26024264]
[1772693126631,1.46154813,90.489,90.44,1.26024264]
[1772693127528,1.19202771,90.479,90.44,1.26024264]
[1772693128811,1.19202771,90.477,90.44,1.26024264]
[1772693129127,1.19202771,90.469,90.441,11.05693214]
[1772693129326,1.19202771,90.469,90.427,1.22189284]
[1772693129531,1.19202771,90.459,90.427,1.22189284]
[1772693130237,1.19202771,90.459,90.43,11.05827712]
[1772693130833,1.47635085,90.459,90.425,1.22189284]
[1772693131029,1.19202771,90.449,90.422,1.06807992]
[1772693131420,1.19202771,90.449,90.423,11.05913318]
[1772693133237,1.19202771,90.449,90.424,1.22189284]
[1772693133420,4.21991903,90.46,90.424,1.22189284]
[1772693133421,1.19202771,90.46,90.424,1.22189284]
[1772693134238,1.19202771,90.458,90.424,1.22189284]
[1772693134726,1.19202771,90.458,90.426,1.22189284]
[1772693135631,1.19202771,90.456,90.426,1.22189284]
[1772693136646,1.19202771,90.456,90.428,1.22189284]
[1772693138342,12.24644721,90.462,90.428,1.22189284]
[1772693139848,1.19202771,90.461,90.43,1.22189284]
[1772693141947,1.19202771,90.459,90.431,11.05815483]
[1772693142138,1.19202771,90.459,90.431,12.28004767]
[1772693142344,1.19202771,90.459,90.432,1.22189284]
[1772693144233,1.19202771,90.457,90.427,11.05860667]
[1772693144553,1.19202771,90.457,90.428,1.22189284]
[1772693147924,1.19202771,90.491,90.428,1.22189284]
[1772693148127,1.19202771,90.491,90.402,4.69919867]
[1772693148128,1.47635085,90.479,90.43,1.22189284]
[1772693154447,1.17116484,90.476,90.432,1.16127436]
[1772693157959,1.17116484,90.476,90.434,1.16127436]
[1772693161555,1.17116484,90.476,90.436,1.16127436]
[1772693163362,1.17116484,90.476,90.438,1.16127436]
[1772693163537,1.17116484,90.483,90.438,1.16127436]
[1772693163737,27.62539332,90.497,90.438,1.16127436]
[1772693163738,1.17116484,90.496,90.438,1.16127436]
[1772693164039,1.17116484,90.495,90.438,1.16127436]
[1772693164739,1.17116484,90.495,90.437,38.70097415]
[1772693164740,1.17116484,90.495,90.44,1.16127436]
[1772693164940,1.17116484,90.489,90.44,1.16127436]
[1772693166850,1.17116484,90.479,90.441,38.69926249]
[1772693167157,1.17116484,90.479,90.442,1.16127436]
[1772693167355,1.45548798,90.479,90.433,11.057794]
[1772693167560,1.17116484,90.459,90.433,11.057794]
[1772693169256,15.27749658,90.46,90.433,11.057794]
[1772693169257,1.17116484,90.457,90.433,11.057794]
[1772693169960,1.17116484,90.457,90.433,12.21906836]
[1772693170146,1.17116484,90.457,90.433,11.057794]
[1772693170346,1.17116484,90.457,90.434,1.16127436]
[1772693170957,1.17116484,90.457,90.435,11.05766572]
[1772693171158,1.17116484,90.457,90.435,12.21894008]
[1772693171339,1.17116484,90.457,90.436,1.16127436]
[1772693174045,1.17116484,90.457,90.41,1.01045519]
[1772693174046,1.17116484,90.455,90.418,1.16127436]
[1772693175158,1.17116484,90.475,90.418,1.16127436]
[1772693175957,1.17116484,90.474,90.42,1.16127436]
[1772693176460,1.17116484,90.48,90.423,1.16127436]
[1772693177167,12.22344487,90.48,90.423,1.16127436]
[1772693177464,1.17116484,90.483,90.423,1.16127436]
[1772693178468,1.17116484,90.483,90.425,1.16127436]
[1772693178666,98.49463659,90.702,90.428,1.4455975]
[1772693178667,1.17358204,90.494,90.428,1.4455975]
[1772693180771,1.17259995,90.489,90.433,1.25500305]
[1772693181348,1.17259995,90.489,90.433,1.53932619]
[1772693182659,1.17259995,90.489,90.435,1.53932619]
[1772693182847,1.17115952,90.487,90.435,1.25500305]
[1772693187677,1.16888973,90.485,90.437,1.18622724]
[1772693190670,1.1675809,90.483,90.439,1.18622724]
[1772693192078,1.16673871,90.481,90.441,1.18622724]
[1772693193671,1.16673871,90.481,90.443,1.18622724]
[1772693194566,1.16589734,90.487,90.443,1.18622724]
[1772693196684,1.16589734,90.487,90.445,1.18622724]
[1772693198077,1.16589734,90.487,90.422,0.28432314]
[1772693198078,1.16430338,90.469,90.425,1.18622724]
[1772693198275,1.16430338,90.459,90.427,12.24487122]
[1772693198464,1.16430338,90.459,90.428,1.18622724]
[1772693198986,1.16430338,90.459,90.429,11.0583994]
[1772693199188,1.16430338,90.459,90.429,12.24462664]
[1772693199570,11.05485418,90.458,90.429,12.24462664]
[1772693199765,1.1639174,90.457,90.429,12.24462664]
[1772693201569,1.1639174,90.457,90.43,1.18622724]
[1772693202464,4.22286894,90.48,90.43,1.18622724]
[1772693202465,1.16280591,90.466,90.43,1.18622724]
[1772693202872,1.16244158,90.465,90.43,1.18622724]
[1772693203772,1.16244158,90.465,90.432,1.18622724]
[1772693204290,1.16209743,90.463,90.432,1.18622724]
[1772693205781,1.16209743,90.463,90.434,1.18622724]
[1772693208474,1.16209743,90.463,90.435,11.05766572]
[1772693208672,1.16209743,90.463,90.436,1.18622724]
[1772693209097,1.1599592,90.462,90.435,11.05766572]
[1772693209798,1.1599592,90.462,90.435,12.21884617]
[1772693209973,1.1599592,90.462,90.436,1.16118045]
[1772693210298,0.28432314,90.479,90.436,1.16118045]
[1772693210299,1.15961627,90.478,90.436,1.16118045]
[1772693210693,1.15961627,90.477,90.438,1.16118045]
[1772693212998,1.15961627,90.477,90.44,1.16118045]
[1772693215102,1.15799996,90.483,90.442,1.16118045]
[1772693216685,1.15767589,90.49,90.442,1.16118045]
[1772693216891,1.1573674,90.488,90.442,1.16118045]
[1772693217101,1.1573674,90.488,90.444,1.16118045]
[1772693218094,1.15708107,90.486,90.444,1.16118045]
[1772693220799,1.15648525,90.484,90.446,1.16118045]
[1772693223588,0.28432314,90.497,90.448,1.16118045]
[1772693223784,1.15561109,90.496,90.448,1.16118045]
[1772693227205,1.15561109,90.496,90.449,38.69583964]
[1772693227410,1.15561109,90.496,90.45,1.16118045]
[1772693229685,1.15561109,90.496,90.451,38.69498402]
[1772693229889,1.15561109,90.496,90.452,1.16118045]
[1772693231322,1.43634613,90.518,90.452,1.16118045]
[1772693232814,1.43634613,90.518,90.445,0.88517633]
[1772693232815,1.1520607,90.516,90.455,1.44550359]
[1772693234109,1.1520607,90.516,90.457,1.44550359]
[1772693234295,1.15181591,90.527,90.457,1.44550359]
[1772693234495,1.15181591,90.527,90.458,1.16118045]
[1772693235094,1.15181591,90.527,90.463,1.44550359]
[1772693236400,1.15184968,90.545,90.467,1.16118045]
[1772693236604,1.15184968,90.545,90.474,1.16118045]
[1772693236913,1.15184968,90.545,90.474,1.44550359]
[1772693237108,1.15184968,90.545,90.48,1.44550359]
[1772693237301,1.15160062,90.539,90.48,1.44550359]
[1772693238714,1.15160062,90.539,90.486,1.16118045]
[1772693239917,1.15160062,90.539,90.487,1.52713883]
[1772693240705,1.15116212,90.551,90.492,1.24281569]
[1772693241021,1.15092044,90.544,90.492,1.24281569]
[1772693241316,1.15092044,90.541,90.492,1.24281569]
[1772693241898,0.1,90.56,90.493,1.25527589]
[1772693242210,0.1,90.56,90.493,1.39743746]
[1772693242815,0.1,90.56,90.498,1.25527589]
[1772693243025,0.1,90.56,90.498,1.53959903]
[1772693243218,0.1,90.56,90.498,1.39743746]
[1772693243402,0.1,90.56,90.498,1.25527589]
[1772693243605,0.1,90.56,90.498,1.39743746]
[1772693245301,0.1,90.56,90.503,1.53959903]
[1772693246515,0.1,90.56,90.503,1.25527589]
[1772693246720,4.3226711,90.56,90.503,1.25527589]
[1772693248023,0.1,90.56,90.508,1.25527589]
[1772693250514,0.1,90.56,90.499,55.24922927]
[1772693250515,4.3226711,90.56,90.513,1.25527589]
[1772693252406,0.1,90.56,90.513,1.25527589]
[1772693254619,0.1,90.56,90.515,1.25527589]
[1772693256830,0.1,90.56,90.52,1.25527589]
[1772693257708,0.1,90.56,90.521,38.66506113]
[1772693258032,0.1,90.56,90.525,1.25527589]
[1772693262738,0.1,90.56,90.527,1.25527589]
[1772693263429,0.1,90.56,90.526,11.04655016]
[1772693264443,0.28432314,90.559,90.526,11.04655016]
[1772693265234,0.28432314,90.557,90.517,1.25527589]
[1772693266541,0.1,90.56,90.517,1.25527589]
[1772693267341,0.1,90.56,90.519,1.25527589]
[1772693269746,0.1,90.56,90.521,1.25527589]
[1772693271647,0.1,90.56,90.523,1.25527589]
[1772693272541,0.1,90.58,90.526,1.25527589]
[1772693272723,0.06808988,90.59,90.527,1.25527589]
[1772693272927,0.06808988,90.59,90.527,1.53959903]
[1772693273432,0.06808988,90.59,90.528,1.53959903]
[1772693273830,0.06808988,90.59,90.533,1.25527589]
[1772693274032,0.06808988,90.59,90.534,1.38888054]
[1772693274220,0.06808988,90.59,90.535,1.53959903]
[1772693274626,0.06808988,90.59,90.537,1.53959903]
[1772693275135,0.06808988,90.59,90.539,1.53959903]
[1772693275730,0.06808988,90.59,90.541,1.25527589]
[1772693276042,0.06808988,90.59,90.546,1.53959903]
[1772693276736,0.28432314,90.623,90.547,1.53959903]
[1772693277042,0.28432314,90.623,90.547,1.39743746]
[1772693277433,0.28432314,90.621,90.552,1.25527589]
[1772693277633,0.28432314,90.619,90.552,1.25527589]
[1772693278319,11.03484805,90.622,90.552,1.53959903]
[1772693279324,27.57740455,90.654,90.565,1.25527589]
[1772693279519,11.03202466,90.646,90.57,1.53959903]
[1772693279725,11.03145619,90.65,90.57,1.53959903]
[1772693279926,11.03145619,90.65,90.569,3.69383402]
[1772693279927,11.03034447,90.659,90.577,1.25527589]
[1772693280138,0.62817474,90.677,90.573,4.82477569]
[1772693280139,0.62817474,90.677,90.579,1.25527589]
[1772693280339,6.39225913,90.674,90.605,1.25527589]
[1772693280521,18.04691685,90.675,90.607,1.53959903]
[1772693280723,7.01846843,90.675,90.607,1.53959903]
[1772693281532,7.01846843,90.675,90.611,3.69383402]
[1772693281833,7.01846843,90.675,90.612,1.53959903]
[1772693282038,11.0282765,90.676,90.612,1.53959903]
[1772693282239,0.62817474,90.677,90.612,1.53959903]
[1772693282635,11.0282765,90.676,90.612,1.53959903]
[1772693283048,4.21307018,90.67,90.612,1.53959903]
[1772693283229,0.28432314,90.669,90.612,1.25527589]
[1772693283636,0.28432314,90.667,90.614,1.25527589]
[1772693285749,11.02949286,90.666,90.616,1.25527589]
[1772693286140,120.48468816,90.951,90.616,1.25527589]
[1772693286141,12.60146546,90.708,90.618,3.69383402]
[1772693286325,11.02450748,90.707,90.621,1.25527589]
[1772693286530,0.28432314,90.706,90.622,2.11134893]
[1772693286847,4.21307018,90.69,90.623,1.25527589]
[1772693287239,4.21307018,90.68,90.623,1.25527589]
[1772693287749,4.21307018,90.68,90.625,1.25527589]
[1772693288445,0.28432314,90.687,90.625,1.25527589]
[1772693290255,11.0270604,90.686,90.627,1.25527589]
[1772693290934,4.21307018,90.7,90.63,1.25527589]
[1772693291137,0.28432314,90.699,90.63,1.53959903]
[1772693292455,11.02560144,90.698,90.635,1.25527589]
[1772693293349,11.02560144,90.698,90.637,1.25527589]
[1772693293556,11.02560144,90.698,90.64,1.25527589]
[1772693293751,11.02560144,90.698,90.642,1.25527589]
[1772693293945,11.02560144,90.698,90.643,1.25527589]
[1772693294262,4.21307018,90.69,90.643,1.25527589]
[1772693295357,1.23210111,90.689,90.636,0.28432314]
[1772693295562,1.23210111,90.689,90.64,0.28432314]
[1772693296951,1.23210111,90.689,90.642,0.28432314]
[1772693297353,1.23210111,90.689,90.643,1.15289027]
[1772693297550,1.23210111,90.689,90.643,0.60081957]
[1772693300445,1.23210111,90.689,90.645,1.21596405]
[1772693302363,1.23210111,90.689,90.647,1.21596405]
[1772693303771,27.55726498,90.721,90.649,3.69383402]
[1772693303969,11.0198909,90.745,90.655,1.21596405]
[1772693304263,4.21307018,90.72,90.655,1.50028719]
[1772693304557,11.02250983,90.724,90.66,1.50028719]
[1772693304855,11.02250983,90.724,90.662,1.50028719]
[1772693305057,4.21307018,90.72,90.664,1.21596405]
[1772693305365,4.21307018,90.72,90.665,1.21596405]
[1772693305544,11.02250983,90.724,90.665,1.21596405]
[1772693305744,148.94517892,90.816,90.665,1.50028719]
[1772693305745,0.5684563,90.734,90.665,1.50028719]
[1772693306244,3.69383402,90.768,90.665,1.50028719]
[1772693306245,0.5700774,90.746,90.673,3.69383402]
[1772693306566,0.5700774,90.746,90.679,1.21596405]
[1772693306567,0.5700774,90.729,90.679,1.21596405]
[1772693308059,0.5700774,90.729,90.675,93.74138405]
[1772693308060,0.5770076,90.719,90.676,1.23029099]
[1772693308567,0.5770076,90.717,90.677,11.02815487]
[1772693308769,0.5770076,90.717,90.677,38.59854206]
[1772693309267,0.5770236,90.709,90.677,11.02815487]
[1772693309471,0.5770236,90.699,90.672,11.02874565]
[1772693309652,0.5770236,90.699,90.668,11.02924956]
[1772693310856,3.49,92.06,90.668,11.02924956]
[1772693310857,0.28432314,90.709,90.668,11.02924956]
[1772693311063,4.21307018,90.69,90.667,0.74863223]
[1772693311254,4.21307018,90.69,90.667,0.5162983]
[1772693312155,0.28432314,90.699,90.667,0.5162983]
[1772693312355,4.21307018,90.69,90.667,0.5162983]
[1772693312960,4.21307018,90.69,90.668,11.02924956]
[1772693313162,11.02669563,90.689,90.667,0.5162983]
[1772693313949,11.02669563,90.689,90.663,11.02974361]
[1772693313950,4.21307018,90.68,90.638,1.25616176]
[1772693314360,0.28432314,90.679,90.638,1.25616176]
[1772693315069,0.28432314,90.677,90.639,12.28894014]
[1772693317778,11.0282765,90.676,90.639,11.03277838]
[1772693318066,4.21307018,90.67,90.639,11.03277838]
[1772693318275,4.21307018,90.65,90.624,0.26379887]
[1772693318449,0.28432314,90.666,90.624,0.26379887]
[1772693318450,4.21307018,90.64,90.624,0.26379887]
[1772693319569,0.28432314,90.649,90.624,0.26379887]
[1772693320549,11.03168299,90.648,90.624,0.26379887]
[1772693320756,0.02126395,90.679,90.627,1.25616176]
[1772693322767,0.02299477,90.678,90.629,1.25616176]
[1772693323155,0.02472067,90.728,90.632,1.25616176]
[1772693323361,0.02472067,90.709,90.632,1.5404849]
[1772693324179,0.02641702,90.708,90.632,1.5404849]
[1772693324769,0.02811326,90.698,90.634,1.25616176]
[1772693325077,4.21307018,90.7,90.634,1.25616176]
[1772693325078,0.02811326,90.689,90.634,1.25616176]
[1772693325279,0.02811326,90.699,90.634,1.5404849]
[1772693326687,0.02975747,90.706,90.634,1.5404849]
[1772693327858,0.03302045,90.689,90.636,1.25616176]
[1772693328063,0.03302045,90.679,90.636,1.25616176]
[1772693328978,0.03620773,90.689,90.636,1.25616176]
[1772693329571,0.03620773,90.649,90.625,0.6987901]
[1772693329776,4.21307018,90.65,90.625,0.6987901]
[1772693329977,11.03156129,90.649,90.625,0.6987901]
[1772693330482,4.21307018,90.64,90.625,0.41446696]
[1772693331390,4.21307018,90.63,90.557,1.27426562]
[1772693331575,4.21307018,90.62,90.56,1.27426562]
[1772693331772,4.21307018,90.61,90.56,1.55858876]
[1772693331970,4.21307018,90.61,90.56,1.27426562]
[1772693332275,11.03643125,90.609,90.562,1.27426562]
[1772693333473,11.03643125,90.609,90.564,1.27426562]
[1772693334376,9.02234291,90.6,90.564,1.27426562]
[1772693334771,11.03591031,90.614,90.564,1.27426562]
[1772693335295,9.02234291,90.61,90.564,1.27426562]
[1772693335596,27.58560387,90.627,90.558,0.66432307]
[1772693335597,11.03526326,90.619,90.566,1.27426562]
[1772693335821,9.02234291,90.61,90.566,1.27426562]
[1772693337881,11.03643125,90.609,90.568,1.27426562]
[1772693339380,9.02234291,90.63,90.568,1.27426562]
[1772693339573,11.03265666,90.64,90.568,1.27426562]
[1772693339807,47.63664122,90.64,90.568,1.55858876]
[1772693339980,47.63664122,90.64,90.57,1.55858876]
[1772693340375,9.02234291,90.62,90.57,1.27426562]
[1772693340592,9.02234291,90.61,90.57,1.27426562]
[1772693341788,11.03643125,90.609,90.571,11.0410617]
[1772693341992,11.03643125,90.609,90.572,1.27426562]
[1772693342904,9.02234291,90.6,90.571,11.0410617]
[1772693343489,11.03643125,90.609,90.572,1.27426562]
[1772693343891,11.03643125,90.609,90.574,1.27426562]
[1772693344511,9.02234291,90.61,90.574,1.27426562]
[1772693344689,11.03524521,90.619,90.574,1.27426562]
[1772693346191,11.03524521,90.619,90.576,1.27426562]
[1772693348210,11.03399574,90.629,90.578,1.27426562]
[1772693349210,9.02234291,90.62,90.578,1.27426562]
[1772693349614,0.02228811,90.628,90.578,1.27426562]
[1772693350001,11.03399574,90.629,90.578,1.27426562]
[1772693350205,11.03399574,90.629,90.58,1.27426562]
[1772693352614,4.20906212,90.63,90.582,1.27426562]
[1772693353013,0.02610933,90.629,90.582,1.27426562]
[1772693353517,0.02610933,90.628,90.584,1.27426562]
[1772693354114,11.03399574,90.629,90.584,1.27426562]
[1772693354506,0.02741524,90.628,90.584,1.27426562]
[1772693355614,0.02872735,90.619,90.585,12.31362092]
[1772693356117,0.02872735,90.619,90.541,104.4]
[1772693356118,0.02848872,90.609,90.58,11.03993956]
[1772693356324,4.20906212,90.6,90.58,11.03993956]
[1772693356515,0.02848872,90.603,90.58,11.03993956]
[1772693356816,27.58163336,90.641,90.563,1.27426562]
[1772693357015,0.02979035,90.607,90.563,1.27426562]
[1772693357418,0.02979035,90.619,90.563,1.27426562]
[1772693357818,0.02979035,90.618,90.565,1.27426562]
[1772693358822,4.20906212,90.61,90.565,1.27426562]
[1772693359323,0.03055231,90.612,90.565,1.27426562]
[1772693359820,0.03055231,90.612,90.567,1.27426562]
[1772693360830,0.03055231,90.612,90.569,1.27426562]
[1772693361028,0.03306187,90.62,90.569,1.27426562]
[1772693361412,0.03306187,90.628,90.569,1.27426562]
[1772693362231,4.20906212,90.62,90.569,1.27426562]
[1772693362730,4.24334994,90.62,90.569,1.27426562]
[1772693363921,4.24334994,90.62,90.55,3.69383402]
[1772693363922,0.03670082,90.609,90.571,1.27426562]
[1772693366110,11.03643125,90.609,90.573,1.27426562]
[1772693366311,0.03946438,90.615,90.573,1.27426562]
[1772693366530,4.20906212,90.62,90.573,1.27426562]
[1772693366735,0.04062077,90.619,90.573,1.27426562]
[1772693368909,4.20906212,90.61,90.574,11.040696]
[1772693369132,0.04101927,90.609,90.575,1.27426562]
[1772693371232,0.04101927,90.609,90.577,1.27426562]
[1772693371938,11.0357444,90.615,90.577,1.27426562]
[1772693372644,0.04477648,90.609,90.577,1.27426562]
[1772693372810,4.20906212,90.6,90.576,12.31471783]
[1772693373015,0.0458916,90.602,90.576,12.31471783]
[1772693373429,0.0458916,90.602,90.577,1.27426562]
[1772693373727,11.03643125,90.609,90.577,1.27426562]
[1772693373935,0.04697561,90.608,90.577,1.27426562]
[1772693374522,0.04697561,90.608,90.579,1.27426562]
[1772693376351,0.04697561,90.608,90.58,11.03996467]
[1772693376525,0.04909192,90.599,90.565,12.3160588]
[1772693376926,4.25920226,90.59,90.565,12.3160588]
[1772693377137,0.05014014,90.59,90.565,12.3160588]
[1772693378139,0.05117837,90.598,90.566,1.27426562]
[1772693379439,0.05117837,90.598,90.545,1.55858876]
[1772693380027,0.05171625,90.644,90.55,0.28432314]
[1772693380219,0.05171625,90.682,90.559,1.27426562]
[1772693380420,0.05171625,90.659,90.571,1.27426562]
[1772693380726,4.20906212,90.64,90.573,1.55858876]
[1772693380932,38.59598821,90.683,90.576,4.82477569]
[1772693380933,0.05273956,90.664,90.576,4.82477569]
[1772693381133,0.05273956,90.669,90.587,1.27426562]
[1772693381335,0.05273956,90.669,90.589,1.55858876]
[1772693381541,0.05273956,90.669,90.591,1.55858876]
[1772693381737,0.05273956,90.669,90.593,1.55858876]
[1772693382039,0.05209691,90.649,90.6,1.27426562]
[1772693383938,0.05084374,90.639,90.6,1.27426562]
[1772693384137,0.05084374,90.638,90.601,12.31167138]
[1772693384330,0.05084374,90.638,90.602,1.27426562]
[1772693385641,0.05019517,90.648,90.602,1.27426562]
[1772693386430,0.04958108,90.665,90.604,1.55858876]
[1772693386630,0.04958108,90.678,90.607,1.55858876]
[1772693387124,164.9,90.742,90.607,1.55858876]
[1772693387125,0.04895285,90.687,90.607,1.55858876]
[1772693387329,0.04895285,90.696,90.607,1.55858876]
[1772693387523,11.02619246,90.694,90.607,1.55858876]
[1772693387938,0.04689026,90.693,90.607,1.55858876]
[1772693388137,0.04689026,90.689,90.607,1.55858876]
[1772693388638,0.04689026,90.689,90.612,1.55858876]
[1772693389233,0.04567869,90.679,90.612,1.55858876]